[Event "1st Festival Galdar 2024"]
[Site "Galdar"]
[Date "2024.09.03"]
[Round "3.7"]
[White "Movsziszian, Karen"]
[Black "Fiorito, Fabian"]
[Result "1-0"]
[Annotator "TA"]
[ECO "A07"]
[WhiteElo "2444"]
[BlackElo "2285"]
[PlyCount "83"]
[EventDate "2024.09.02"]
[EventType "swiss"]
[EventCountry "ESP"]
[SourceTitle "playchess.com"]
[Source "ChessBase"]
[SourceQuality "1"]
[TimeControl "5400+30"]

{[%evp 21,83,9,22,13,25,0,17,-12,-6,0,-10,-17,-11,-17,0,-25,-18,-36,0,0,0,-5,33,36,51,33,56,52,70,85,20,58,75,66,133,117,371,345,374,352,348,238,241,222,281,277,377,366,367,258,294,304,5607,29971,29971,29972,29972,29973,29965,2092,29988,29989,29993,29994]} 1. g3 {[%emt 0:00:03]} Nf6 {[%emt 0:00:34]} 2. Bg2 {[%emt 0:00:23]} d5 {[%emt 0:00:21]} 3. Nf3 {[%emt 0:00:32]} c6 {[%emt 0:00:32]} 4. b3 {[%emt 0:01:34]} Bf5 {[%emt 0:00:42]} 5. Bb2 {[%emt 0:00:14]} e6 {[%emt 0:00:15]} 6. d3 {[%emt 0:00:17]} h6 {[%emt 0:00:20]} 7. O-O {[%emt 0:01:45]} Be7 {[%emt 0:00:11]} 8. Nbd2 {[%emt 0:01:47]} O-O {[%emt 0:01:07]} 9. e3 {[%emt 0:00:40]} Bh7 {[%emt 0:00:12]} 10. Qe2 {[%emt 0:00:07]} a5 {[%emt 0:00:27]} 11. a4 {[%emt 0:00:05]} Na6 {[%emt 0:01:40]} 12. Ne5 {[%emt 0:03:29]} Nb4 {[%emt 0:04:30]} 13. Ndf3 {[%emt 0:00:34]} Re8 {[%emt 0:04:53]} 14. h4 {[%emt 0:12:26] The position is equal.} Nd7 {[%emt 0:03:17]} 15. Nxd7 {[%emt 0:02:07]} Qxd7 {[%emt 0:00:15]} 16. Bh3 {[%emt 0:02:44]} Qc7 {[%emt 0:04:21]} 17. Rfd1 {[%emt 0:16:18]} Bf8 {[%emt 0:02:35]} 18. c3 {[%emt 0:13:08]} Na6 {[%emt 0:00:15]} 19. d4 {[%emt 0:00:01] Repels Nc5} Reb8 {[%emt 0:04:48]} 20. Ba3 {[%emt 0:02:49]} Bxa3 {[%emt 0:03:11]} 21. Rxa3 {[%emt 0:00:01]} b5 {[%emt 0:01:51]} 22. axb5 {[%emt 0:00:32]} cxb5 {[%emt 0:00:56]} 23. Rda1 {[%emt 0:02:58][%cal Bd1a1,Ba1a7,Ba7f7][%mdl 32]} Qxc3 {[%emt 0:06:15]} 24. Rxa5 {[%emt 0:02:51]} Nc7 {[%emt 0:00:05]} 25. Rxa8 {[%emt 0:00:18]} Nxa8 {[%emt 0:00:07]} 26. Ra7 {[%emt 0:00:42][%cal Oe2b5] [#] Threatens to win with Qxb5!} Bd3 {[%emt 0:11:20]} 27. Qa2 {[%emt 0:02:42]} Qc1+ {[%emt 0:09:08]} ({Black should try} 27... Nb6 $1 $14) 28. Kh2 $16 {[%emt 0:00:07]} Nb6 {[%emt 0:01:10][%mdl 8192] [#] This costs Black the game.} (28... Nc7 $16 {was called for.}) 29. Rxf7 $3 $18 {[%emt 0:01:16][%mdl 512]} Ra8 {[%emt 0:03:10] Repels Qa7} 30. Ra7 {[%emt 0:02:36]} Rf8 {[%emt 0:02:22]} 31. Bxe6+ {[%emt 0:00:06]} Kh7 {[%emt 0:03:44]} 32. Rf7 {[%emt 0:06:49]} Rxf7 {[%emt 0:04:01]} 33. Bxf7 {[%emt 0:00:02]} Be4 {[%emt 0:00:12]} 34. Qe2 {[%emt 0:01:31][%cal Of3g5] Ng5+! is the strong threat.} g6 {[%emt 0:03:43]} 35. Be6 {[%emt 0:00:03]} (35. Qxb5 Bxf3 36. g4 Qh1+ 37. Kg3 g5 38. hxg5 hxg5 39. Qd3+ Be4) 35... Qb1 {[%emt 0:01:58]} 36. Qe1 {[%emt 0:03:07]} (36. Qxb5 Bxf3 37. g4 Qh1+ 38. Kg3 Be4) 36... Qxb3 {[%emt 0:09:35]} (36... Qxe1 37. Nxe1 h5) 37. Qa5 {[%emt 0:00:06]} Qc2 {[%emt 0:00:06]} 38. Qa7+ {[%emt 0:00:06]} (38. Qxb6 Qxf2+ 39. Kh3 Qf1+ 40. Kh2 Qe2+ 41. Kg1 (41. Kh3 Qf1+ 42. Kh2 Qf2+ 43. Kh3 Qf1+ $11) 41... Qxe3+ (41... Qxf3 42. Qc7+ Kh8 43. Qd8+ Kg7 44. Qg8+ Kf6 45. Qf7#) 42. Kh2 Qf2+ (42... Bxf3 43. Qb7+ Kh8 44. Qc8+ Kg7 45. Qg8+ Kf6 46. Qf7#) 43. Kh3 Qf1+ (43... Qxf3 44. Qa7+ Kh8 45. Qa8+ Kg7 46. Qg8+ Kf6 47. Qf7#) 44. Kh2 Qf2+ (44... Qxf3 45. Qc7+ Kh8 46. Qc8+ Kg7 47. Qg8+ Kf6 48. Qf7#) 45. Kh3 Qf1+ (45... Qxf3 46. Qc7+ Kh8 47. Qd8+ Kg7 48. Qg8+ Kf6 49. Qf7#) 46. Kh2 Qe2+ (46... Qxf3 47. Qb7+ Kh8 48. Qc8+ Kg7 49. Qg8+ Kf6 50. Qf7#) 47. Kh3 Qf1+ $11 (47... Qxf3 48. Qc7+ Kh8 49. Qd8+ Kg7 50. Qg8+ Kf6 51. Qf7#)) 38... Kh8 {[%emt 0:00:06]} 39. Qb8+ {[%emt 0:00:44]} ({And not} 39. Qxb6 Qxf2+ 40. Kh3 Qf1+ 41. Kh2 Qf2+ 42. Kh3 Qf1+ 43. Kh2 Qe2+ 44. Kg1 Qxe3+ (44... Qxf3 45. Qd8+ Kg7 46. Qg8+ Kf6 47. Qf7#) 45. Kh2 Qf2+ (45... Bxf3 46. Qb8+ Kg7 47. Qg8+ Kf6 48. Qf7#) 46. Kh3 Qf1+ (46... Qxf3 47. Qd8+ Kg7 48. Qg8+ Kf6 49. Qf7#) 47. Kh2 Qf2+ (47... Qxf3 48. Qd8+ Kg7 49. Qg8+ Kf6 50. Qf7#) 48. Kh3 Qf1+ (48... Qxf3 49. Qd8+ Kg7 50. Qg8+ Kf6 51. Qf7#) 49. Kh2 Qf2+ $11 (49... Qxf3 50. Qb8+ Kg7 51. Qg8+ Kf6 52. Qf7#)) 39... Nc8 {[%emt 0:00:22]} 40. Nd2 {[%emt 0:03:00][%cal Ob8f4] White wants to mate with Qf4!} ({Stronger than} 40. Qxc8+ Qxc8 41. Bxc8 Bxf3 $11) 40... Bf5 {[%emt 0:02:58]} 41. Bxd5 {[%emt 0:00:32]} Kg7 {[%emt 0:04:03]} 42. Qb7+ {[%emt 0:01:07] Weighted Error Value: White=0.17 (very precise) /Black=0.40.  Loses game:     	---       	Black=1      Mistake:       	---       	Black=2      Inaccurate:     	White=2     	Black=3      OK:         	White=8     	Black=9      Best:        	White=4     	Black=1      Brilliant:      	White=1     	---} 1-0

[Event "1st Festival Galdar 2024"]
[Site "Galdar"]
[Date "2024.09.03"]
[Round "3.8"]
[White "Garcia Blanco, Omar"]
[Black "Rakotomaharo, Fy Antenaina"]
[Result "1-0"]
[Annotator "RC"]
[ECO "C54"]
[WhiteElo "2365"]
[BlackElo "2440"]
[PlyCount "109"]
[EventDate "2024.09.02"]
[EventType "swiss"]
[EventCountry "ESP"]
[SourceTitle "playchess.com"]
[Source "ChessBase"]
[SourceQuality "1"]
[TimeControl "5400+30"]

1. e4 {[%emt 0:00:33]} e5 {[%emt 0:00:05]} 2. Nf3 {[%emt 0:00:06]} Nc6 {[%emt 0:00:05]} 3. Bc4 {[%emt 0:00:07]} Nf6 {[%emt 0:00:07]} 4. d3 {[%emt 0:00:06]} Bc5 {[%emt 0:00:39]} 5. O-O {[%emt 0:00:23]} d6 {[%emt 0:00:49]} 6. a4 {[%emt 0:00:25]} O-O {[%emt 0:00:32]} 7. c3 {[%emt 0:00:12]} Bb6 {[%emt 0:00:20]} 8. Nbd2 {[%emt 0:02:32]} h6 {[%emt 0:01:27]} 9. h3 {[%emt 0:00:30]} a5 {[%emt 0:00:52]} 10. Re1 {[%emt 0:01:18]} Be6 {[%emt 0:01:49]} 11. Bxe6 {[%emt 0:07:16]} fxe6 {[%emt 0:00:08]} 12. Nc4 {[%emt 0:00:05]} Ba7 {[%emt 0:00:04]} 13. Be3 {[%emt 0:00:42]} Bxe3 {[%emt 0:00:56]} 14. Nxe3 {[%emt 0:00:18]} Qd7 {[%emt 0:01:06]} 15. Nf1 {[%emt 0:06:28]} Rf7 {[%emt 0:03:06]} 16. Ng3 {[%emt 0:08:32]} Raf8 {[%emt 0:06:38]} 17. d4 {[%emt 0:00:58]} exd4 {[%emt 0:01:04]} 18. cxd4 {[%emt 0:00:11]} d5 {[%emt 0:04:19]} 19. e5 {[%emt 0:05:09]} Ne4 {[%emt 0:09:45]} 20. Nxe4 {[%emt 0:06:17]} dxe4 {[%emt 0:00:06]} 21. Rxe4 {[%emt 0:00:06]} Qd5 {[%emt 0:00:32]} 22. Qd3 {[%emt 0:01:20]} Nb4 {[%emt 0:06:22]} 23. Qe2 {[%emt 0:00:37]} Qc6 {[%emt 0:00:08]} 24. Rg4 {[%emt 0:07:26]} Nd5 {[%emt 0:04:18]} 25. Qb5 {[%emt 0:16:18]} Qc2 {[%emt 0:01:37]} 26. Qxa5 {[%emt 0:00:25]} Qxb2 {[%emt 0:02:11]} 27. Re1 {[%emt 0:01:41]} Nc3 {[%emt 0:08:12]} 28. Qc5 {[%emt 0:01:43]} h5 {[%emt 0:08:49]} 29. Rg5 {[%emt 0:05:51]} Rxf3 {[%emt 0:11:07]} 30. gxf3 {[%emt 0:00:08]} Qd2 {[%emt 0:00:03]} 31. Qe7 {[%emt 0:03:48]} Rf7 {[%emt 0:07:27]} 32. Qe8+ {[%emt 0:00:07]} Kh7 {[%emt 0:00:04]} 33. Rxh5+ {[%emt 0:00:51]} Kg6 {[%emt 0:00:09]} 34. Qxe6+ {[%emt 0:00:05]} Kxh5 {[%emt 0:00:04]} 35. Qxf7+ {[%emt 0:00:10]} Kh6 {[%emt 0:00:04]} 36. Kf1 {[%emt 0:08:46]} Qd3+ {[%emt 0:00:52]} 37. Kg2 {[%emt 0:00:07]} Qd2 {[%emt 0:00:02]} 38. Rg1 {[%emt 0:02:28]} Ne2 {[%emt 0:00:27]} 39. Kh1 {[%emt 0:02:13]} Nxg1 {[%emt 0:01:12]} 40. Kxg1 {[%emt 0:00:05]} Qg5+ {[%emt 0:06:05]} 41. Kf1 {[%emt 0:02:31]} Qc1+ {[%emt 0:00:06]} 42. Ke2 {[%emt 0:01:45]} Qc2+ {[%emt 0:00:31]} 43. Ke3 {[%emt 0:00:07]} Qc1+ {[%emt 0:03:50]} 44. Ke4 {[%emt 0:00:12]} Qb1+ {[%emt 0:00:03]} 45. Kf4 {[%emt 0:00:52]} Qc1+ {[%emt 0:03:02]} 46. Kf5 {[%emt 0:00:32]} Qb1+ {[%emt 0:00:05]} 47. Ke6 {[%emt 0:00:21]} Qb6+ {[%emt 0:00:05]} 48. Ke7 {[%emt 0:00:20]} Qxd4 {[%emt 0:02:02]} 49. e6 {[%emt 0:00:22]} Kh7 {[%emt 0:08:43]} 50. Ke8 {[%emt 0:04:09]} Qxa4+ {[%emt 0:00:50]} 51. Kf8 {[%emt 0:00:08]} Qa8+ {[%emt 0:01:28]} 52. Qe8 {[%emt 0:00:07]} Qa5 {[%emt 0:01:27]} 53. e7 {[%emt 0:00:23]} b6 {[%emt 0:00:32]} 54. f4 {[%emt 0:05:02]} Qd5 {[%emt 0:00:32]} 55. Qf7 {[%emt 0:00:32]} 1-0

[Event "1st Festival Galdar 2024"]
[Site "Galdar"]
[Date "2024.09.03"]
[Round "3.9"]
[White "Ragnarsson, Dagur"]
[Black "Koelle, Tobias"]
[Result "1/2-1/2"]
[Annotator "TA"]
[ECO "D27"]
[WhiteElo "2332"]
[BlackElo "2433"]
[PlyCount "59"]
[EventDate "2024.09.02"]
[EventType "swiss"]
[EventCountry "ESP"]
[SourceTitle "playchess.com"]
[Source "ChessBase"]
[SourceQuality "1"]
[TimeControl "5400+30"]

{[%evp 15,59,6,4,-27,-13,-22,-21,-33,-47,-114,-124,-102,74,68,244,252,217,53,91,-78,-80,-101,-114,-102,-124,-88,0,0,0,0,0,0,0,-57,-50,-45,0,0,0,0,0,0,0,0,0,0]} 1. d4 {[%emt 0:00:04]} Nf6 {[%emt 0:00:08]} 2. c4 {[%emt 0:00:04]} e6 {[%emt 0:00:14]} 3. Nf3 {[%emt 0:00:29]} d5 {[%emt 0:00:20]} 4. Nc3 {[%emt 0:00:06]} dxc4 {[%emt 0:00:08]} 5. e3 {[%emt 0:00:42]} a6 {[%emt 0:00:47]} 6. Bxc4 {[%emt 0:00:50]} b5 {[%emt 0:00:09]} 7. Bb3 {[%emt 0:01:41]} Bb7 {[%emt 0:00:56]} 8. O-O {[%emt 0:00:48]} c5 {[%emt 0:00:50]} 9. a3 {[%emt 0:00:56]} Nbd7 {[%emt 0:01:09]} 10. Re1 {[%emt 0:02:30]} Qc7 {[%emt 0:06:40]} 11. e4 {[%emt 0:17:10]} cxd4 {[%emt 0:05:02]} 12. Nd5 {[%emt 0:00:09]} exd5 $17 {[%emt 0:10:08]} 13. exd5+ {[%emt 0:00:12] [#]} (13. e5 $2 Ne4 14. Nxd4 Qxe5 $19 (14... Nxe5 $2 15. Bf4 $19)) 13... Be7 $2 {[%emt 0:01:13]} (13... Kd8 $1 $17 14. Bg5 Bd6) 14. Nxd4 $16 {[%emt 0:08:11][%cal Oe1e7] Threatens to win with Rxe7+!} Nb6 $2 {[%emt 0:10:56]} (14... O-O $1 $14 15. Rxe7 Bxd5) 15. Nf5 $1 $18 {[%emt 0:05:11][%csl LRe7,LRg7]} Nfxd5 {[%emt 0:07:47] White must now prevent ...0-0.} 16. Nxg7+ $2 {[%emt 0:00:50]} (16. Rxe7+ $18 Nxe7 17. Nxg7+ Kf8 18. Bh6) 16... Kd8 $14 {[%emt 0:01:01]} 17. Qh5 $2 {[%emt 0:26:40] White is more active.} (17. Nf5 $16 {keeps the pressure on.} Bc5 18. Bg5+ Kc8 19. Bxd5 (19. Nh6 $2 Kb8 $19) 19... Nxd5 20. b4 Bxf2+ 21. Kxf2) 17... Kc8 $17 {[%emt 0:10:49]} 18. Bh6 {[%emt 0:06:34][%cal Ob3d5]} (18. Qxf7 Bf6 19. Qe6+ (19. Re8+ Rxe8 20. Qxe8+ Qd8 $19) 19... Qd7) 18... Kb8 {[%emt 0:03:01]} 19. Rad1 {[%emt 0:07:53]} Rd8 {[%emt 0:13:42] aiming for ...Bc5.} 20. Qxf7 {[%emt 0:01:28]} Bf6 {[%emt 0:00:55]} (20... Rd7 $17 {...Bf6 would now be deadly.} 21. Ne6 Qc6 22. Bxd5 (22. Qxh7 $2 Ne3 $19) 22... Rxd5) 21. Rxd5 $1 $11 {[%emt 0:13:56]} Nxd5 {[%emt 0:07:50]} (21... Qxf7 $2 22. Rxd8+ Bxd8 23. Bxf7 $18) (21... Bxd5 $2 22. Qxf6 Rd6 (22... Bxb3 $2 23. Bf4 $18) 23. Qf8+ Kb7 24. Bxd5+ (24. Ne8 Rxe8 25. Bxd5+ Nxd5 $18) 24... Nxd5 25. Ne8 Rxe8 26. Rxe8 $18) 22. Bxd5 {[%emt 0:00:05] [#] White threatens Bf4 and mate.} Qxf7 {[%emt 0:00:36]} (22... Bxg7 23. Bf4 Ka7 24. Qxc7 (24. Bxc7 Rxd5 25. Qxg7 b4 $18) 24... Rxd5 25. Be3+ (25. Qxg7 Re8 $18) 25... Bd4 26. Bxd4+ (26. Qxh7 Bxe3 27. fxe3 Rg5 $18) 26... Rxd4 27. Qc5+ (27. Qxh7 Re8 $18) 27... Kb8 28. Re8+ (28. Qxd4 Be4 29. Rxe4 Kc7 30. Re7+ Kc6 31. b4 h6 32. Qc5#) (28. Qxd4 Be4 29. Rxe4 Kc7 30. Re7+ Kc6 31. b4 h6 32. Qc5#)) 23. Bxf7 {[%emt 0:00:04]} Bxb2 {[%emt 0:05:36][%cal Od8d3] Strongly threatening ...Rd3!} 24. Bf4+ {[%emt 0:00:59]} ({White should play} 24. Ne6 $1 $11 Rd7 25. Bh5) 24... Ka7 $15 {[%emt 0:00:01]} 25. Ne6 {[%emt 0:00:31] Hoping for Be3+.} Rd7 {[%emt 0:01:49]} (25... Rd3 $5 26. Be3+ Rxe3 (26... Kb8 27. Nc5 $11) 27. Rxe3 Rc8 $17) 26. Be3+ {[%emt 0:00:10] The position is equal.} Kb8 {[%emt 0:00:02]} 27. Bf4+ {[%emt 0:00:16]} Ka7 $1 {[%emt 0:01:06]} ({Wrong is} 27... Kc8 $2 28. Nc5 $18) 28. Be3+ {[%emt 0:00:05]} Kb8 {[%emt 0:00:07]} 29. Bf4+ {[%emt 0:00:04]} Ka7 $1 {[%emt 0:00:57]} ({Avoid the trap} 29... Kc8 $2 30. Nc5 $18) 30. Be3+ {[%emt 0:00:08] Weighted Error Value: White=0.33/Black=0.23 (precise) .  Loses game:     	---       	Black=1      Missed win:     	White=1     	---        Mistake:       	White=3     	Black=2      Inaccurate:     	---       	Black=1      OK:         	White=3     	Black=7      Best:        	White=6     	Black=6      Strong:       	White=1     	Black=2} 1/2-1/2

[Event "1st Festival Galdar 2024"]
[Site "Galdar"]
[Date "2024.09.03"]
[Round "3.11"]
[White "Fiorito, Francisco"]
[Black "Sieber, Fiona"]
[Result "1/2-1/2"]
[Annotator "TA"]
[ECO "D02"]
[WhiteElo "2416"]
[BlackElo "2270"]
[PlyCount "71"]
[EventDate "2024.09.02"]
[EventType "swiss"]
[EventCountry "ESP"]
[SourceTitle "playchess.com"]
[Source "ChessBase"]
[SourceQuality "1"]
[TimeControl "5400+30"]

{[%evp 14,71,32,26,40,39,26,22,29,26,59,63,29,40,28,50,77,81,75,58,61,54,60,54,52,35,41,33,36,31,48,22,29,15,25,24,61,0,0,-32,34,0,0,0,0,0,0,-16,-24,-31,0,0,0,0,0,-5,-18,-21,-8,-20]} 1. d4 {[%emt 0:00:03]} Nf6 {[%emt 0:00:07]} 2. Nf3 {[%emt 0:00:10]} e6 {[%emt 0:00:48]} 3. Bf4 {[%emt 0:00:07]} c5 {[%emt 0:02:14]} 4. e3 {[%emt 0:00:06]} d5 {[%emt 0:04:16]} 5. c3 {[%emt 0:02:32]} Nc6 {[%emt 0:01:16]} 6. Nbd2 {[%emt 0:00:08]} Bd6 {[%emt 0:00:09]} 7. Bg3 {[%emt 0:00:09]} cxd4 {[%emt 0:02:34]} 8. exd4 {[%emt 0:00:35]} Nh5 {[%emt 0:00:26]} 9. Bxd6 {[%emt 0:02:04]} Qxd6 {[%emt 0:00:04]} 10. Bb5 {[%emt 0:01:05]} O-O {[%emt 0:04:49]} 11. O-O {[%emt 0:00:45]} a6 {[%emt 0:08:19]} 12. Bxc6 {[%emt 0:02:14]} bxc6 {[%emt 0:00:01]} 13. Ne5 {[%emt 0:00:47]} g6 {[%emt 0:02:18]} 14. Qa4 {[%emt 0:01:32]} c5 {[%emt 0:03:29] [#]} 15. Qa3 $1 {[%emt 0:00:44] White has more active pieces. The black rooks are passive.} Qb8 {[%emt 0:06:39]} 16. Rfe1 {[%emt 0:14:18]} cxd4 {[%emt 0:06:22]} 17. cxd4 {[%emt 0:00:07]} f6 {[%emt 0:02:11]} 18. Nd3 {[%emt 0:04:12]} Ng7 {[%emt 0:01:55]} 19. Nf3 {[%emt 0:01:53]} Nf5 {[%emt 0:04:30]} 20. Nc5 {[%emt 0:02:02]} Re8 {[%emt 0:00:12]} 21. Qa4 {[%emt 0:01:41]} Kf7 {[%emt 0:01:06]} 22. Re2 {[%emt 0:01:51]} Ra7 {[%emt 0:01:06]} 23. Rae1 {[%emt 0:00:21]} g5 {[%emt 0:03:16]} 24. Qc2 {[%emt 0:02:09][%cal Oc5e6] [#] Black must now prevent Nxe6!} Qf4 {[%emt 0:07:06][%cal Of7g7]} 25. Nd3 {[%emt 0:02:26] A dynamic duo of knights.} (25. Qd3 $14) 25... Qc7 $11 {[%emt 0:00:51]} 26. h3 {[%emt 0:01:12]} h5 {[%emt 0:01:00]} ({Better is} 26... Qxc2 $15 27. Rxc2 Ne7) 27. g4 {[%emt 0:01:20]} (27. Nc5 $5) 27... Qxc2 {[%emt 0:06:34]} 28. Rxc2 {[%emt 0:00:02]} hxg4 {[%emt 0:01:59]} 29. hxg4 {[%emt 0:00:02]} Nd6 {[%emt 0:03:18]} 30. Rec1 {[%emt 0:01:31]} Bd7 {[%emt 0:07:47]} 31. Nc5 {[%emt 0:01:18]} Ke7 {[%emt 0:00:38]} 32. Kg2 {[%emt 0:00:25] The position is equal.} Rh8 {[%emt 0:00:35]} 33. b3 {[%emt 0:00:32]} Ne4 {[%emt 0:02:21]} 34. Nxe4 {[%emt 0:01:16]} dxe4 {[%emt 0:00:01]} 35. Nd2 {[%emt 0:00:00]} Rh4 {[%emt 0:00:55]} 36. f3 {[%emt 0:07:00] Weighted Error Value: White=0.14 (very precise) /Black=0.10 (very precise) .  Mistake:       	White=1     	Black=1      Inaccurate:     	White=3     	Black=4      OK:         	White=9     	Black=13     Strong:       	White=1     	---} 1/2-1/2

[Event "1st Festival Galdar 2024"]
[Site "Galdar"]
[Date "2024.09.03"]
[Round "3.12"]
[White "Fiorito, Joaquin"]
[Black "Brito Garcia, Alfredo"]
[Result "1-0"]
[Annotator "TA"]
[ECO "C02"]
[WhiteElo "2402"]
[BlackElo "2240"]
[PlyCount "47"]
[EventDate "2024.09.02"]
[EventType "swiss"]
[EventCountry "ESP"]
[SourceTitle "playchess.com"]
[Source "ChessBase"]
[SourceQuality "1"]
[TimeControl "5400+30"]

{[%evp 12,47,0,0,58,47,50,29,52,35,55,55,109,101,153,195,191,165,319,308,331,306,327,313,325,310,288,214,365,364,344,349,415,412,839,673,1856,414]} 1. e4 {[%emt 0:00:04]} e6 {[%emt 0:00:39]} 2. d4 {[%emt 0:00:05]} d5 {[%emt 0:00:03]} 3. e5 {[%emt 0:00:07]} c5 {[%emt 0:00:06]} 4. c3 {[%emt 0:00:04]} Nc6 {[%emt 0:00:40]} 5. Nf3 {[%emt 0:00:05]} Bd7 {[%emt 0:00:04]} 6. Be2 {[%emt 0:00:08]} Nge7 {[%emt 0:02:42]} 7. O-O {[%emt 0:00:12]} a5 {[%emt 0:04:31]} (7... cxd4 $11 8. cxd4 Nf5) 8. dxc5 {[%emt 0:06:02]} Qc7 {[%emt 0:07:51]} 9. Na3 {[%emt 0:06:24] Nb5 would now be deadly.} Nxe5 {[%emt 0:02:03] White has an edge.} 10. Nxe5 {[%emt 0:06:11]} Qxe5 {[%emt 0:00:36]} 11. Nb5 {[%emt 0:08:02]} Nf5 {[%emt 0:10:36] Wards off Nd6+} (11... Ng6 $1 $14) 12. Re1 $16 {[%emt 0:06:41]} Be7 {[%emt 0:11:01]} (12... Qb8 $142) 13. Bd3 {[%emt 0:01:02]} Qb8 {[%emt 0:05:20]} 14. a4 $36 {[%emt 0:00:11][%mdl 2048] Keeping Black busy.} g6 {[%emt 0:10:45]} (14... Bxb5 15. axb5 (15. Bxb5+ Kf8 $16) 15... Nh4) 15. Bxf5 $1 $18 {[%emt 0:01:42]} gxf5 {[%emt 0:00:52] [#]} 16. Qd4 $1 {[%emt 0:00:14]} f6 {[%emt 0:13:24] [#] Black is weak on the dark squares} 17. Bf4 $1 {[%emt 0:00:25]} Qc8 {[%emt 0:01:52]} 18. Nc7+ {[%emt 0:00:20]} Kf7 {[%emt 0:00:13]} 19. Nxa8 {[%emt 0:00:20]} Bxc5 {[%emt 0:00:19]} (19... Qxa8 {was necessary.} 20. b4 Rg8) 20. Qd1 {[%emt 0:02:24]} (20. Nb6 Qc6 21. Qd1 Qxb6 $18) 20... Qxa8 {[%emt 0:01:05]} 21. Qh5+ {[%emt 0:00:21]} Kg8 {[%emt 0:04:28]} 22. Rad1 {[%emt 0:00:34] And now Rd3 would win.} Be8 {[%emt 0:12:37]} (22... Qe8 $142 23. Qxe8+ Bxe8 24. Rxd5 (24. Rxe6 Bxa4 25. Rxd5 Kf7 $18) 24... Be7 25. Rxe6 Kf7) 23. Qh6 {[%emt 0:01:38]} Kf7 {[%emt 0:00:24]} 24. Rd3 {[%emt 0:00:44] White took control after the opening.   Weighted Error Value: White=0.20 (precise) /Black=0.54.  Mistake:       	---       	Black=5      Inaccurate:     	---       	Black=1      OK:         	White=5     	Black=3      Best:        	White=3     	Black=3      Strong:       	White=3     	---} (24. Rxe6 $142 Kg8 25. Qxf6 (25. Rxf6 Bf7 $18) 25... Bh5 26. Bh6 (26. Rxd5 h6 27. Bxh6 Rxh6 28. Qxh6 Qf8 29. Qxh5 Qg7 30. Rxc5 Qd7 31. Qg5+ Kf8 32. Rxf5+ Qf7 33. Re7 b6 34. Rfxf7#) (26. Be5 Qf8 27. Qxh8+ Kf7 28. Rf6+ Ke8 29. Rxf8+ Bxf8 30. Bd6 Kd7 31. Qxf8 Kc6 32. Qd8 d4 33. c4 Bxd1 34. Qc7#) 26... Bf8 27. Qg5+ (27. Rxd5 Bxh6 28. Qxh6 Bg6 29. Re7 Bf7 30. Qf6 Qf8) 27... Bg6 28. Rxg6+ (28. Rxd5 Bxh6 29. Rxg6+ hxg6 30. Qxg6+ Bg7 31. Qe6+ Kh7 32. Qxf5+ Kg8 33. Qe6+ Kf8 34. Rf5+ Bf6 35. Rxf6+ Kg7 36. Qf7#) 28... Kf7 29. Qxf5+ Ke8 30. Rxd5 Bd6 31. Rgxd6 (31. Qe6+ Kd8 32. Qxd6+ Ke8 33. Qe6#) 31... Qd8 32. Rxd8+ Ke7 33. Bg5#) 1-0